lending/lending_fUSD_20260204
["ID","MTS","AMOUNT","RATE_DAILY","PERIOD"]
[404482921,1770195050788,-523.34287504,0.00017043,7]
[404482922,1770195050799,-590.0917593,0.00017043,7]
[404482923,1770195050809,-147.9082407,0.00017063,2]
[404482924,1770195050832,-852.0917593,0.00017063,2]
[404482925,1770195050843,-150.0,0.00017075,2]
[404482926,1770195050852,-150.0,0.00017079,2]
[404482927,1770195050862,-1084.77905972,0.00017096,2]
[404482928,1770195050872,-175.34,0.00017143,2]
[404482929,1770195050881,-1000.0,0.00017144,2]
[404482930,1770195050891,-150.0,0.00017156,2]
[404482931,1770195050900,-1084.77905972,0.00017178,2]
[404482932,1770195050910,-150.0,0.00017212,2]
[404482933,1770195050920,-379.04164842,0.00017233,2]
[404482934,1770195051534,-333.44283979,0.00017233,2]
[404482935,1770195051546,-372.29457151,0.00017233,2]
[404482936,1770195051556,-686.03489742,0.00017261,2]
[404482937,1770195051571,-313.96510258,0.00017261,2]
[404482938,1770195051582,-307.75254484,0.00017263,2]
[404482939,1770195051594,-692.24745516,0.00017263,2]
[404482940,1770195051603,-137.18714968,0.00017269,2]
[404482941,1770195051615,-1161.0,0.00017269,2]
[404482942,1770195051628,-479.69548327,0.00017269,2]
[404482943,1770195051637,-159.58944175,0.0001729,2]
[404482944,1770195051647,-308.0,0.000173,2]
[404482945,1770195051658,-205.0,0.000173,2]
[404482946,1770195051668,-342.20407498,0.000173,2]
[404482947,1770195051680,-263.79592502,0.000173,2]
[404482948,1770195051689,-984.0,0.000173,2]
[404482949,1770195051699,-1084.77905972,0.00017315,2]
[404482950,1770195051708,-3616.834056,0.00017326,7]
[404482951,1770195051717,-487.0364942,0.00017368,2]
[404482952,1770195051728,-306.46787306,0.0001737,2]
[404482953,1770195051739,-778.31118666,0.0001737,2]
[404482954,1770195051751,-1000.0,0.00017384,2]
[404482955,1770195051761,-4080.20113867,0.00017384,2]
[404482956,1770195051774,-13.42733022,0.00017384,2]
[404482957,1770195051783,-1000.0,0.00017399,2]
[404482958,1770195051793,-217.15233878,0.00017401,2]
[404482959,1770195051804,-157.02,0.00017408,2]
[404482960,1770195051812,-1.37175409,0.00017417,2]
[404482961,1770195051824,-173.96824591,0.00017417,2]
[404482962,1770195051833,-446.90977692,0.00017438,2]
[404482963,1770195051845,-553.09022308,0.00017438,2]
[404482964,1770195051854,-64.73515377,0.00017452,7]
[404482965,1770195051879,-860.52042585,0.00017452,7]
[404482966,1770195051891,-474.74442038,0.00017452,7]
[404482967,1770195051900,-25.25557962,0.00017452,7]
[404482968,1770195051910,-974.74442038,0.00017452,7]
[404482969,1770195051920,-1030.1308482,0.00017452,2]
[404482970,1770195051931,-54.64821152,0.00017452,2]
[404482971,1770195051941,-1004.01,0.00017454,2]
[404482972,1770195051950,-160.47393295,0.00017497,2]
[404482973,1770195051959,-335.74012562,0.00017505,2]
[404482974,1770195052152,-151.0,0.00014413,2]
[404482975,1770195052162,-151.0,0.00014458,2]
[404482976,1770195052171,-664.25987438,0.00017505,2]
[404482977,1770195052180,-1084.77905972,0.00017507,2]
[404482978,1770195052189,-290.77767861,0.00017528,2]
[404482979,1770195052200,-709.22232139,0.00017528,2]
[404482980,1770195052210,-99.81379714,0.00017589,2]
[404482981,1770195052228,-984.96526258,0.00017589,2]
[404482982,1770195052236,-160.0,0.00017609,2]
[404482983,1770195052246,-1000.0,0.00017612,2]
[404482984,1770195052258,-150.0,0.00017615,2]
[404482985,1770195052267,-433.36,0.00017616,2]
[404482986,1770195052276,-1.67473742,0.00017644,2]
[404482987,1770195052287,-1083.1043223,0.00017644,2]
[404482988,1770195052296,-175.34,0.00017691,2]
[404482989,1770195052305,-767.024,0.00017719,2]
[404482990,1770195052316,-150.491,0.00017719,2]
[404482991,1770195052328,-1084.77905972,0.00017726,2]
[404482992,1770195052338,-1084.77905972,0.00017781,2]
[404482993,1770195052347,-487.0364942,0.00017782,2]
[404482994,1770195052358,-200.0,0.00017791,2]
[404482995,1770195052367,-150.0,0.000178,2]
[404482996,1770195052377,-200.0,0.000178,2]
[404482997,1770195052387,-272.463,0.000178,2]
[404482998,1770195052396,-150.685,0.000178,2]
[404482999,1770195052405,-171.937,0.000178,2]
[404483000,1770195052415,-170.0,0.000178,2]
[404483001,1770195052424,-150.076,0.000178,2]
[404483002,1770195052433,-150.0,0.000178,2]
[404483003,1770195052442,-150.0,0.000178,2]
[404483004,1770195052451,-151.0,0.000178,2]
[404483005,1770195052460,-150.127,0.000178,2]
[404483006,1770195052469,-808.05806405,0.000178,2]
[404483070,1770196232477,-500.0,0.00013698,2]
[404483071,1770196232486,-500.0,0.00013698,2]
[404483072,1770196232495,-174.61919141,0.00014168,2]
[404483073,1770196232505,-322.6107,0.00014168,2]
[404483074,1770196232514,-209.40437684,0.00014168,2]
[404483075,1770196232523,-500.0,0.00014168,2]
[404483076,1770196232532,-500.0,0.00014168,2]
[404483077,1770196232541,-500.0,0.00014168,2]
[404483078,1770196232550,-500.0,0.00014168,2]
[404483079,1770196232559,-500.0,0.00014168,2]
[404483080,1770196232569,-500.0,0.00014168,2]
[404483081,1770196232578,-500.0,0.00014168,2]
[404483082,1770196232588,-500.0,0.00014168,2]
[404483083,1770196232601,-500.0,0.00014168,2]
[404483084,1770196232611,-500.0,0.00014168,2]
[404483085,1770196232620,-626.10481314,0.00014168,2]
[404483086,1770196232629,-416.0,0.000142,2]
[404483087,1770196232639,-217.15233878,0.00014223,2]
[404483088,1770196232648,-1103.0,0.00014224,2]
[404483089,1770196232658,-225.18697532,0.00014278,2]
[404483090,1770196232670,-233.51889341,0.00014333,2]
[404483091,1770196232688,-242.15909246,0.00014388,2]
[404483092,1770196232706,-251.11897888,0.00014443,2]
[404483093,1770196232724,-260.4103811,0.00014498,2]
[404483094,1770196232737,-270.0455652,0.00014553,2]
[404483095,1770196232748,-280.03725112,0.00014608,2]
[404483096,1770196232758,-436.0,0.00014655,2]
[404483097,1770196232769,-290.39862941,0.00014663,2]
[404483098,1770196232780,-181.08010149,0.00014716,2]
[404483099,1770196232795,-301.1433787,0.00014718,2]
[404483100,1770196232816,-456.45928601,0.00014902,2]
[404483101,1770196232841,-216.68,0.00014914,2]
[404483102,1770196232853,-1103.0,0.00014973,2]
[404483103,1770196232864,-250.0,0.00015,2]
[404483104,1770196232875,-300.0,0.00015002,2]
[404483105,1770196232892,-300.0,0.00015002,2]
[404483106,1770196232913,-2500.0,0.00015002,2]
[404483107,1770196232932,-171.87393035,0.00015002,2]
[404483108,1770196238419,-2328.12606965,0.00015002,2]
[404483109,1770196238428,-456.459286,0.00015235,2]
[404483110,1770196238438,-187.78006525,0.00015264,2]
[404483111,1770196238447,-150.0,0.00015447,2]
[404483112,1770196238456,-150.0,0.00015502,2]
[404483113,1770196238466,-334.5472959,0.00015537,2]
[404483114,1770196238475,-166.8633284,0.00015557,2]
[404483115,1770196238484,-456.459286,0.00015568,2]
[404483116,1770196238494,-328.96466881,0.00015721,2]
[404483117,1770196238506,-774.03533119,0.00015721,2]
[404483118,1770196238516,-194.72792766,0.00015812,2]
[404483119,1770196238525,-456.459286,0.00015901,2]
[404483120,1770196238535,-150.0,0.00016,2]
[404483121,1770196238544,-174.46,0.00016,2]
[404483122,1770196238553,-203.73745519,0.00016082,2]
[404483123,1770196238565,-596.26254481,0.00016082,2]
[404483124,1770196238574,-963.36629183,0.00016082,2]
[404483133,1770196240374,-236.63370817,0.00016082,2]
[404483134,1770196240384,-456.459286,0.00016234,2]
[404483135,1770196240393,-500.0,0.00016235,2]
[404483136,1770196240402,-1000.0,0.00016297,2]
[404483137,1770196240411,-500.0,0.00016356,2]
[404483138,1770196240421,-201.93286099,0.0001636,2]
[404483139,1770196240431,-500.0,0.00016425,2]
[404483140,1770196240441,-1103.0,0.00016507,2]
[404483141,1770196240457,-67.17414483,0.00016541,2]
[404483142,1770196240491,-419.86234937,0.00016541,2]
[404483143,1770196240500,-487.0364942,0.00016541,2]
[404483144,1770196240509,-456.459286,0.00016568,2]
[404483145,1770196240518,-165.74,0.00016712,2]
[404483146,1770196240527,-165.4252,0.00016831,2]
[404483147,1770196240536,-456.459286,0.00016901,2]
[404483148,1770196240545,-346.92554585,0.00016906,2]
[404483149,1770196240553,-209.40437684,0.00016908,2]
[404483150,1770196240562,-487.0364942,0.00016955,2]
[404483151,1770196240572,-487.0364942,0.00016955,2]
[404483152,1770196240581,-300.0,0.00017,2]
[404483153,1770196240591,-613.62,0.00017178,2]
[404483154,1770196240603,-150.49192517,0.00017178,2]
[404483155,1770196240612,-456.459286,0.00017234,2]
[404483156,1770196240621,-153.0,0.00017267,2]
[404483157,1770196240631,-278.97730158,0.00017267,2]
[404483158,1770196240642,-182.64431818,0.00017299,2]
[404483159,1770196240651,-243.76494287,0.00017299,2]
[404483160,1770196240660,-500.0,0.00017299,2]
[404483161,1770196240671,-178.36426003,0.00017299,2]
[404483162,1770196240680,-500.0,0.00017299,2]
[404483163,1770196240689,-500.0,0.00017299,2]
[404483164,1770196240698,-500.0,0.00017299,2]
[404483165,1770196240708,-500.0,0.00017299,2]
[404483166,1770196240717,-500.0,0.00017299,2]
[404483167,1770196240727,-500.0,0.00017299,2]
[404483168,1770196240736,-500.0,0.00017299,2]
[404483169,1770196240746,-500.0,0.00017299,2]
[404483170,1770196240755,-500.0,0.00017299,2]
[404483171,1770196240765,-500.0,0.00017299,2]
[404483172,1770196240774,-500.0,0.00017299,2]
[404483173,1770196240784,-500.0,0.00017299,2]
[404483174,1770196240793,-421.69179028,0.00017299,2]
[404483175,1770196240804,-78.30820972,0.00017299,2]
[404483176,1770196240814,-500.0,0.00017299,2]
[404483177,1770196240824,-500.0,0.00017299,2]
[404483178,1770196240834,-121.14300353,0.00017299,2]
[404483179,1770196240861,-378.85699647,0.00017299,2]
[404483180,1770196240870,-15.22171328,0.00017299,2]
[404483184,1770196244999,-484.77828672,0.00017299,2]
[404483185,1770196245008,-500.0,0.00017299,2]
[404483186,1770196245018,-500.0,0.00017299,2]
[404483187,1770196245027,-500.0,0.00017299,2]
[404483188,1770196245036,-500.0,0.00017299,2]
[404483189,1770196245045,-500.0,0.00017299,2]
[404483190,1770196245054,-500.0,0.00017299,2]
[404483191,1770196245063,-500.0,0.00017299,2]
[404483192,1770196245072,-500.0,0.00017299,2]
[404483193,1770196245081,-500.0,0.00017299,2]
[404483194,1770196245090,-500.0,0.00017299,2]
[404483195,1770196245099,-500.0,0.00017299,2]
[404483196,1770196245108,-500.0,0.00017299,2]
[404483197,1770196245116,-500.0,0.00017299,2]
[404483198,1770196245126,-500.0,0.00017299,2]
[404483199,1770196245134,-383.98149851,0.00017299,2]
[404483200,1770196245143,-120450.35849776,0.000173,2]
[404483213,1770196246827,-1166.45523108,0.000173,2]
[404483214,1770196246850,-976.61528902,0.000173,2]
[404483215,1770196246861,-3251.89,0.000173,2]
[404483225,1770196562526,161.79,0.000231,120]
[404483332,1770197431351,-166.67649684,0.00013336,2]
[404483334,1770197431361,-166.67649684,0.00013336,2]
[404483336,1770197431370,-1574.12283238,0.00013336,2]
[404483337,1770197431405,-3145.62502986,0.00013336,2]
[404483342,1770197431696,-269.63544121,0.00013336,2]
[404483344,1770197431711,-558.27538772,0.00013336,2]
[404483346,1770197431723,-59870.51383259,0.00013336,2]
[404483348,1770197431734,-2382.46942602,0.00013336,2]
[404483350,1770197431745,-9632.4,0.00013336,2]
[404483352,1770197431756,-9080.37230276,0.00013336,2]
[404483355,1770197431772,-93348.63199766,0.00013336,2]
[404483357,1770197431791,-881.50664719,0.00013336,2]
[404483372,1770197437475,-45491.92103769,0.00013336,2]
[404483373,1770197437487,-878.56929425,0.00013336,2]
[404483374,1770197437530,-4494.93777375,0.00013336,2]
[404483375,1770197437541,-445.97421239,0.00013336,2]
[404483376,1770197437586,-2008.95009054,0.00013336,2]
[404483377,1770197437598,-1893.48,0.00013336,2]
[404483378,1770197437611,-448.30419999,0.00013336,2]
[404483379,1770197437642,-8102.7196177,0.00013336,2]
[404483381,1770197439624,-2745.62778275,0.00013336,2]
[404483382,1770197439944,-5102.74894562,0.00013336,2]
[404483403,1770197443893,-500.0,0.00013336,2]
[404483404,1770197443952,-568.73993784,0.00013336,2]
[404483405,1770197444010,-814.61105078,0.00013336,2]
[404483454,1770197445609,-73565.90675931,0.00013336,2]
[404483457,1770197445619,-175.37,0.00013436,2]
[404483459,1770197445629,-500.0,0.00013436,2]
[404483460,1770197445638,-500.0,0.00013436,2]
[404483461,1770197445647,-500.0,0.00013436,2]
[404483462,1770197445657,-500.0,0.00013436,2]
[404483463,1770197445667,-500.0,0.00013436,2]
[404483465,1770197445677,-500.0,0.00013436,2]
[404483467,1770197445688,-500.0,0.00013436,2]
[404483469,1770197445698,-500.0,0.00013436,2]
[404483471,1770197445708,-500.0,0.00013436,2]
[404483472,1770197445718,-500.0,0.00013436,2]
[404483473,1770197445727,-500.0,0.00013436,2]
[404483474,1770197445735,-500.0,0.00013436,2]
[404483475,1770197445744,-500.0,0.00013436,2]
[404483476,1770197445754,-500.0,0.00013436,2]
[404483477,1770197445763,-500.0,0.00013436,2]
[404483478,1770197445772,-500.0,0.00013436,2]
[404483479,1770197445781,-500.0,0.00013436,2]
[404483480,1770197445791,-500.0,0.00013436,2]
[404483481,1770197445801,-170.28195656,0.00013436,2]
[404483482,1770197445810,-500.0,0.00013436,2]
[404483483,1770197445819,-500.0,0.00013436,2]
[404483484,1770197445832,-500.0,0.00013436,2]
[404483485,1770197445841,-500.0,0.00013436,2]
[404483486,1770197445850,-500.0,0.00013436,2]
[404483487,1770197445860,-8337.4304842,0.00013658,2]
[404483488,1770197445870,-175.37,0.0001371,2]
[404483489,1770197445879,-175.37253214,0.00013984,2]
[404483490,1770197445889,-1500.0,0.00014,2]
[404483491,1770197445898,-170.63546001,0.00014127,2]
[404483492,1770197445907,-474.85498202,0.00014127,2]
[404483493,1770197445917,-500.0,0.000146,2]
[404483494,1770197445927,-174.61919141,0.00014677,2]
[404483495,1770197445937,-322.6107,0.00014677,2]
[404483496,1770197445946,-209.40437684,0.00014677,2]
[404483497,1770197446202,-217.15233878,0.00014732,2]
[404483498,1770197446282,-225.18697532,0.00014787,2]
[404483499,1770197446292,-233.51889341,0.00014842,2]
[404483500,1770197446302,-166.67649683,0.00014857,2]
[404483501,1770197446311,-242.15909246,0.00014897,2]
[404483502,1770197446324,-251.11897888,0.00014952,2]
[404483503,1770197446334,-3240.0,0.00014982,2]
[404483504,1770197446343,-250.0,0.00015,2]
[404483505,1770197446352,-260.4103811,0.00015007,2]
[404483506,1770197446362,-157.02,0.00015036,2]
[404483507,1770197446371,-270.0455652,0.00015062,2]
[404483508,1770197446380,-500.0,0.00015071,2]
[404483509,1770197446390,-166.66,0.00015092,2]
[404483510,1770197446399,-280.03725112,0.00015117,2]
[404483511,1770197446408,-1000.0,0.00015148,2]
[404483512,1770197446417,-290.39862941,0.00015172,2]
[404483513,1770197446427,-181.08010149,0.00015225,2]
[404483514,1770197446436,-301.1433787,0.00015227,2]
[404483515,1770197446447,-166.66,0.0001541,2]
[404483516,1770197446456,-500.0,0.00015575,2]
[404483517,1770197446466,-1500.0,0.00015696,2]
[404483518,1770197446477,-166.66,0.00015728,2]
[404483519,1770197446486,-187.78006525,0.00015773,2]
[404483520,1770197446495,-150.0,0.000159,2]
[404483521,1770197446510,-10000.0,0.00016,2]
[404483522,1770197446520,-166.66,0.00016045,2]
[404483523,1770197446529,-334.5472959,0.00016046,2]
[404483524,1770197446538,-700.0,0.00016082,2]
[404483525,1770197446548,-500.0,0.00016093,2]
[404483526,1770197446557,-1000.0,0.000161,2]
[404483527,1770197446568,-1613.14167022,0.000162,5]
[404483528,1770197446579,-1000.0,0.000162,2]
[404483529,1770197446589,-500.0,0.00016214,2]
[404483530,1770197446598,-2000.0,0.00016244,2]
[404483531,1770197446608,-1000.0,0.000163,2]
[404483532,1770197446618,-194.72792766,0.00016321,2]
[404483533,1770197446627,-500.0,0.00016356,2]
[404483534,1770197446636,-1100.0,0.00016356,2]
[404483535,1770197446646,-166.66,0.00016363,2]
[404483536,1770197446656,-1000.0,0.000164,2]
[404483537,1770197446665,-490.896,0.00016438,2]
[404483538,1770197446675,-10000.0,0.000165,2]
[404483539,1770197446684,-200.0,0.00016579,2]
[404483540,1770197446694,-10000.0,0.000166,2]
[404483541,1770197446703,-166.66,0.00016681,2]
[404483542,1770197446712,-1939.0564288,0.00016684,2]
[404483704,1770198417116,-259.0,0.00013236,2]
[404483705,1770198417138,-228.229643,0.00013359,2]
[404483706,1770198417161,-4786.39275998,0.00013459,2]
[404483711,1770198631615,-500.0,0.00013135,2]
[404483712,1770198631626,-500.0,0.00013135,2]
[404483713,1770198631636,-500.0,0.00013135,2]
[404483714,1770198631646,-500.0,0.00013135,2]
[404483715,1770198631656,-500.0,0.00013135,2]
[404483716,1770198631666,-500.0,0.00013135,2]
[404483717,1770198631675,-41.48,0.00013135,2]
[404483718,1770198631699,-305.07080691,0.00013135,2]
[404483719,1770198631708,-294.92919309,0.00013135,2]
[404483720,1770198631720,-205.07080691,0.00013135,2]
[404483721,1770198631729,-599.99999999,0.00013135,2]
[404483722,1770198631739,-316.12041051,0.00013135,2]
[404483723,1770198631763,-183.87958949,0.00013135,2]
[404483725,1770198631773,-500.0,0.00013135,2]
[404483727,1770198631783,-500.0,0.00013135,2]
[404483729,1770198631796,-500.0,0.00013135,2]
[404483731,1770198631805,-500.0,0.00013135,2]
[404483733,1770198631814,-1324.73364295,0.00013136,2]
[404483735,1770198631825,-13663.99544368,0.00013136,2]
[404483737,1770198631836,-12897.06802955,0.00013136,2]
[404483740,1770198631852,-1936.75062507,0.00013136,2]
[404483785,1770198638347,-483.78642986,0.00013136,2]
[404483787,1770198638361,-47194.72338178,0.00013136,2]
[404483791,1770198638403,-1972.78274802,0.00013136,2]
[404483792,1770198638562,-404.3482089,0.00013136,2]
[404483793,1770198638573,-426.4607146,0.00013136,2]
[404483819,1770198639676,-406.95691,0.00013136,2]
[404483820,1770198639761,-445.40166449,0.00013136,2]
[404483821,1770198639796,-2435.23074268,0.00013136,2]
[404483822,1770198639894,-3648.7868245,0.00013136,2]
[404483823,1770198640054,-679.77855441,0.00013136,2]
[404483829,1770198645737,-15731.07010939,0.00013136,2]
[404483830,1770198645748,-560.12166038,0.00013136,2]
[404483831,1770198645771,-1469.03100696,0.00013136,2]
[404483832,1770198645782,-683.505879,0.00013136,2]
[404483833,1770198645793,-547.44,0.00013136,2]
[404483834,1770198645804,-59098.04512378,0.00013136,2]
[404483835,1770198645814,-165.4252,0.00013136,2]
[404483836,1770198645824,-1880.02,0.00013505,2]
[404483837,1770198645833,-500.0,0.00013849,2]
[404483838,1770198645844,-228.229643,0.00013864,2]
[404483839,1770198645853,-228.229643,0.00014368,2]
[404483840,1770198645863,-300.0,0.00014449,2]
[404483841,1770198645872,-300.0,0.00014449,2]
[404483842,1770198645881,-600.0,0.00014449,2]
[404483843,1770198645890,-600.0,0.00014449,2]
[404483844,1770198645905,-600.0,0.00014449,2]
[404483845,1770198645915,-2500.0,0.00014559,2]
[404483846,1770198645924,-2500.0,0.00014559,2]
[404483847,1770198645933,-2500.0,0.00014559,2]
[404483848,1770198645943,-2500.0,0.00014559,2]
[404483849,1770198645952,-500.0,0.000146,2]
[404483850,1770198645961,-228.229643,0.00014873,2]
[404483851,1770198645970,-1000.0,0.00015148,2]
[404483852,1770198645979,-228.229643,0.00015377,2]
[404483853,1770198645989,-1000.0,0.00015496,2]
[404483854,1770198645998,-216.68,0.00015661,2]
[404483855,1770198646007,-326.91110422,0.00015696,2]
[404483856,1770198646026,-266.80887864,0.00015696,2]
[404483857,1770198646037,-906.28001714,0.00015696,2]
[404483858,1770198646046,-231.73538489,0.00015766,2]
[404483859,1770198646056,-346.66227661,0.00015766,2]
[404483860,1770198646065,-469.0422,0.00015766,2]
[404483861,1770198646075,-141.77563938,0.00015794,2]
[404483887,1770198646295,-2583.22436062,0.00015794,2]
[404483892,1770198646328,-1228.87266182,0.00015849,2]
[404483895,1770198646344,-1496.12733818,0.00015849,2]
[404483897,1770198646355,-228.229643,0.00015882,2]
[404483899,1770198646364,-2298.2134755,0.00015904,2]
[404483903,1770198646396,-426.7865245,0.00015904,2]
[404483905,1770198646405,-200.0,0.00015929,2]
[404483907,1770198646414,-554.16652079,0.00015958,2]
[404483992,1770198647227,-2170.83347921,0.00015958,2]
[404483994,1770198647236,-166.67649682,0.00015987,2]
[404483996,1770198647245,-8506.66705057,0.00015987,2]
[404483998,1770198647257,-565.339,0.00015987,2]
[404484000,1770198647268,-1853.22023622,0.00015987,2]
[404484025,1770199831735,-500.0,0.00013699,2]
[404484026,1770199831746,-474.0,0.00013771,2]
[404484027,1770199831845,-86.8767,0.00013771,2]
[404484028,1770199831854,-196.0,0.00013871,2]
[404484029,1770199831863,-7068.43561684,0.00013871,2]
[404484030,1770199831875,-8968.72511026,0.00013871,2]
[404484031,1770199831898,-275.07421847,0.00013871,2]
[404484032,1770199831952,-560.87669946,0.00013871,2]
[404484036,1770199837872,-10241.7408808,0.00013871,2]
[404484037,1770199837977,-486.00000005,0.00013871,2]
[404484057,1770199839872,-8293.58191873,0.00013871,2]
[404484060,1770199839980,-3919.85355364,0.00013871,2]
[404484061,1770199839991,-5917.09590615,0.00013871,2]
[404484066,1770199845893,-716.98457134,0.00013871,2]
[404484093,1770201031900,-569.1924479,0.00011,2]
[404484096,1770201032058,-662.96,0.00011,2]
[404484097,1770201032113,-8207.31941195,0.00011,2]
[404484098,1770201032126,-3460.25,0.00012477,2]
[404484099,1770201032136,-9940.05104556,0.0001269,2]
[404484101,1770201037979,-0.72234766,0.0001269,2]
[404484102,1770201037988,-425.89611892,0.0001269,2]
[404484103,1770201038001,-7.40576544,0.0001269,2]
[404484104,1770201038011,-500.0,0.00013699,2]
[404484105,1770201038021,-200.0,0.00014121,2]
[404484106,1770201038030,-3458.05779065,0.000142,2]
[404484107,1770201038040,-176.14955995,0.000142,2]
[404484108,1770201038050,-4122.63704305,0.000142,2]
[404484109,1770201038059,-958.59533922,0.000142,2]
[404484110,1770201038069,-42.16839452,0.0001425,2]
[404484111,1770201038091,-713.27716413,0.0001425,2]
[404484112,1770201038147,-7156.37106715,0.0001425,2]
[404484113,1770201038157,-272.84335085,0.0001429,2]
[404484114,1770201038167,-272.84335085,0.0001429,2]
[404484115,1770201038177,-535.90776542,0.00014299,2]
[404484116,1770201038186,-182.64431818,0.00014299,2]
[404484117,1770201038197,-192.57430487,0.00014299,2]
[404484118,1770201038207,-500.0,0.00014299,2]
[404484119,1770201038217,-500.0,0.00014299,2]
[404484120,1770201038226,-497.93788478,0.00014299,2]
[404484121,1770201038242,-2.06211522,0.00014299,2]
[404484122,1770201038251,-290.49066185,0.00014299,2]
[404484171,1770201040078,-209.50933815,0.00014299,2]
[404484173,1770201040088,-356.55996202,0.00014299,2]
[404484185,1770201040295,-143.44003798,0.00014299,2]
[404484186,1770201040306,-500.0,0.00014299,2]
[404484187,1770201040316,-500.0,0.00014299,2]
[404484188,1770201040325,-500.0,0.00014299,2]
[404484189,1770201040335,-500.0,0.00014299,2]
[404484190,1770201040344,-500.0,0.00014299,2]
[404484191,1770201040353,-500.0,0.00014299,2]
[404484192,1770201040362,-513.93221871,0.00014299,2]
[404484193,1770201040371,-500.0,0.00014299,2]
[404484194,1770201040380,-500.0,0.00014299,2]
[404484195,1770201040389,-443.92126429,0.00014299,2]
[404484196,1770201040399,-500.0,0.00014299,2]
[404484197,1770201040409,-500.0,0.00014299,2]
[404484198,1770201040419,-500.0,0.00014299,2]
[404484199,1770201040428,-216.75704898,0.00014299,2]
[404484200,1770201040438,-500.0,0.00014299,2]
[404484201,1770201040449,-500.0,0.00014299,2]
[404484202,1770201040458,-500.0,0.00014299,2]
[404484203,1770201040467,-500.0,0.00014299,2]
[404484204,1770201040477,-500.0,0.00014299,2]
[404484205,1770201040487,-500.0,0.00014299,2]
[404484206,1770201040496,-500.0,0.00014299,2]
[404484207,1770201040506,-500.0,0.00014299,2]
[404484208,1770201040515,-500.0,0.00014299,2]
[404484209,1770201040524,-500.0,0.00014299,2]
[404484210,1770201040534,-500.0,0.00014299,2]
[404484211,1770201040543,-500.0,0.00014299,2]
[404484212,1770201040555,-32363.24401304,0.000143,2]
[404484216,1770201044735,-444.98876038,0.000143,2]
[404484235,1770201046115,-227653.02295852,0.000143,2]
[404484239,1770201046439,-799.4621888,0.000143,2]
[404484340,1770202150951,-250.0,0.00014247,5]
[404484341,1770202150992,-250.0,0.00014247,5]
[404484342,1770202151027,-250.0,0.00014247,5]
[404484343,1770202151066,-250.0,0.00014247,5]
[404484344,1770202151369,-250.0,0.00014247,5]
[404484345,1770202151405,-250.0,0.00014247,5]
[404484346,1770202151443,-250.0,0.00014247,5]
[404484347,1770202151481,-250.0,0.00014247,5]
[404484348,1770202151522,-250.0,0.00014247,5]
[404484349,1770202151565,-250.0,0.00014247,5]
[404484350,1770202151602,-250.0,0.00014247,5]
[404484351,1770202151642,-250.0,0.00014247,5]
[404484352,1770202151680,-250.0,0.00014247,5]
[404484353,1770202151717,-185.602916,0.00014247,5]
[404484354,1770202151755,-500.0,0.000144,7]
[404484360,1770202163111,-500.0,0.00013277,2]
[404484361,1770202163132,-500.0,0.00013324,2]
[404484362,1770202163154,-262.0,0.00013642,2]
[404484363,1770202163176,-293.78775295,0.00013642,2]
[404484364,1770202163198,-1290.63,0.00013642,2]
[404484365,1770202163221,-150.0,0.00013683,2]
[404484366,1770202163244,-200.0,0.00013699,2]
[404484367,1770202163267,-500.0,0.00013699,2]
[404484368,1770202163289,-166.66,0.00013871,2]
[404484369,1770202163310,-500.0,0.00013973,2]
[404484370,1770202163332,-150.0,0.00013973,2]
[404484371,1770202163352,-282.1631761,0.00013996,2]
[404484372,1770202163372,-470.01222495,0.00013996,2]
[404484374,1770202167079,-196.25665993,0.00013928,2]